[Event "*** Titled Tuesday Blitz"]
[Site "Chess.com"]
[Date "2020.01.07"]
[Round "7"]
[White "shanemelaughcm"]
[Black "newauto"]
[Result "1-0"]
[WhiteElo "2287"]
[BlackElo "2045"]
[TimeControl "180+2"]
[EndTime "14:36:45 PST"]
[Termination "shanemelaughcm won on time"]

1. e4 {[%clk 0:03:01.8]} 1... c6 {[%clk 0:03:01.9]} 2. d4 {[%clk 0:03:02.8]}
2... d5 {[%clk 0:03:03.8]} 3. exd5 {[%clk 0:03:04.6]} 3... cxd5 {[%clk
0:03:04.9]} 4. Bf4 {[%clk 0:03:06.3]} 4... Nc6 {[%clk 0:03:06.1]} 5. Nc3 {[%clk
0:03:07.9]} 5... Bf5 {[%clk 0:03:02]} 6. Nb5 {[%clk 0:03:06.7]} 6... Rc8 {[%clk
0:03:01.6]} 7. c3 {[%clk 0:03:00.9]} 7... e6 {[%clk 0:02:53.7]} 8. Bd3 {[%clk
0:02:55.5]} 8... Bxd3 {[%clk 0:02:49.5]} 9. Qxd3 {[%clk 0:02:57.4]} 9... a6
{[%clk 0:02:47.5]} 10. Na3 {[%clk 0:02:58.3]} 10... Bxa3 {[%clk 0:02:47.3]} 11.
bxa3 {[%clk 0:03:00.2]} 11... Na5 {[%clk 0:02:45.5]} 12. Ne2 {[%clk 0:03:00.1]}
12... Nc4 {[%clk 0:02:45.1]} 13. O-O {[%clk 0:02:59.9]} 13... Nf6 {[%clk
0:02:43]} 14. Rab1 {[%clk 0:02:55.7]} 14... Qd7 {[%clk 0:02:21.9]} 15. a4 {[%clk
0:02:55.1]} 15... O-O {[%clk 0:02:19.4]} 16. Rb4 {[%clk 0:02:21.3]} 16... Nh5
{[%clk 0:02:11.5]} 17. Be3 {[%clk 0:02:16.4]} 17... Nd6 {[%clk 0:01:50.2]} 18.
Rfb1 {[%clk 0:02:14.3]} 18... Rc7 {[%clk 0:01:48.6]} 19. Bf4 {[%clk 0:02:11.7]}
19... Nxf4 {[%clk 0:01:48.5]} 20. Nxf4 {[%clk 0:02:13.6]} 20... Rfc8 {[%clk
0:01:47.2]} 21. R1b3 {[%clk 0:01:57.3]} 21... a5 {[%clk 0:00:59.2]} 22. Rb6
{[%clk 0:01:55.6]} 22... Nc4 {[%clk 0:01:00.4]} 23. R6b5 {[%clk 0:01:56.4]}
23... b6 {[%clk 0:00:51]} 24. Qg3 {[%clk 0:01:55.9]} 24... f6 {[%clk 0:00:45.2]}
25. Nh5 {[%clk 0:01:51]} 25... Kf8 {[%clk 0:00:41.4]} 26. Nf4 {[%clk 0:01:39.4]}
26... e5 {[%clk 0:00:37.9]} 27. dxe5 {[%clk 0:01:31.3]} 27... Nxe5 {[%clk
0:00:22.9]} 28. Nxd5 {[%clk 0:01:27.8]} 28... Rc5 {[%clk 0:00:21.3]} 29. Qh3
{[%clk 0:01:11]} 29... Qxh3 {[%clk 0:00:12]} 30. gxh3 {[%clk 0:01:11.9]} 30...
Nf3+ {[%clk 0:00:09.8]} 31. Kg2 {[%clk 0:01:11.9]} 31... Rxb5 {[%clk 0:00:10.6]}
32. Rxb5 {[%clk 0:01:08.7]} 32... Nh4+ {[%clk 0:00:09.5]} 33. Kg3 {[%clk
0:01:09.5]} 33... Nf5+ {[%clk 0:00:10.2]} 34. Kf4 {[%clk 0:01:10.3]} 34... Nd6
{[%clk 0:00:06.5]} 35. Rxb6 {[%clk 0:01:09.4]} 35... g5+ {[%clk 0:00:08.4]} 36.
Kg4 {[%clk 0:01:06.1]} 36... Ne4 {[%clk 0:00:04.6]} 37. Kf5 {[%clk 0:01:06.8]}
37... Nxf2 {[%clk 0:00:02.9]} 38. Rxf6+ {[%clk 0:01:07.3]} 38... Kg7 {[%clk
0:00:02.3]} 39. Ke6 {[%clk 0:00:48]} 39... Rc6+ {[%clk 0:00:02.9]} 40. Ke7
{[%clk 0:00:34.8]} 40... Rxf6 {[%clk 0:00:04.8]} 41. Nxf6 {[%clk 0:00:35.2]}
41... Nxh3 {[%clk 0:00:05.5]} 42. c4 {[%clk 0:00:36.3]} 42... Nf2 {[%clk
0:00:05.4]} 43. c5 {[%clk 0:00:36.9]} 1-0

[Event "*** Titled Tuesday Blitz"]
[Site "Chess.com"]
[Date "2020.01.07"]
[Round "7"]
[White "francyIM"]
[Black "LimeInTheCoconut"]
[Result "0-1"]
[WhiteElo "2603"]
[BlackElo "2473"]
[TimeControl "180+2"]
[EndTime "14:36:48 PST"]
[Termination "LimeInTheCoconut won by resignation"]

1. d4 {[%clk 0:03:01.9]} 1... Nf6 {[%clk 0:03:00.1]} 2. c4 {[%clk 0:03:01.5]}
2... e6 {[%clk 0:02:56.9]} 3. Nc3 {[%clk 0:03:01.7]} 3... d5 {[%clk 0:02:49.5]}
4. cxd5 {[%clk 0:03:01.9]} 4... exd5 {[%clk 0:02:51.4]} 5. Bg5 {[%clk
0:02:54.9]} 5... Be7 {[%clk 0:02:52.2]} 6. e3 {[%clk 0:02:53.5]} 6... c6 {[%clk
0:02:51.4]} 7. Bd3 {[%clk 0:02:48.4]} 7... O-O {[%clk 0:02:51.3]} 8. Nf3 {[%clk
0:02:29.9]} 8... Bg4 {[%clk 0:02:39.7]} 9. Qc2 {[%clk 0:02:29.7]} 9... Bxf3
{[%clk 0:02:30.4]} 10. gxf3 {[%clk 0:02:29.6]} 10... Nbd7 {[%clk 0:02:31]} 11.
Rg1 {[%clk 0:02:16.3]} 11... Kh8 {[%clk 0:02:31.7]} 12. O-O-O {[%clk 0:02:14.6]}
12... h6 {[%clk 0:02:24.7]} 13. Bf4 {[%clk 0:02:12.3]} 13... Nh5 {[%clk
0:02:20.9]} 14. Bg3 {[%clk 0:02:11.4]} 14... Nxg3 {[%clk 0:02:21.6]} 15. hxg3
{[%clk 0:02:11.9]} 15... Rc8 {[%clk 0:02:17.4]} 16. Kb1 {[%clk 0:02:12.7]} 16...
c5 {[%clk 0:02:12]} 17. dxc5 {[%clk 0:02:14.6]} 17... Rxc5 {[%clk 0:02:12]} 18.
Qb3 {[%clk 0:02:13.3]} 18... Qa5 {[%clk 0:01:48.6]} 19. Qxb7 {[%clk 0:01:50.8]}
19... Rb8 {[%clk 0:01:39]} 20. Qxb8+ {[%clk 0:01:31.5]} 20... Nxb8 {[%clk
0:01:39]} 21. Ne2 {[%clk 0:01:31.2]} 21... Bf6 {[%clk 0:01:36.2]} 22. Nd4 {[%clk
0:01:31.2]} 22... Bxd4 {[%clk 0:01:35.3]} 23. exd4 {[%clk 0:01:33.1]} 23... Rc8
{[%clk 0:01:35.1]} 24. Rge1 {[%clk 0:01:33.3]} 24... Nc6 {[%clk 0:01:34.5]} 25.
Rc1 {[%clk 0:01:34.6]} 25... Qd8 {[%clk 0:01:29.6]} 26. Ba6 {[%clk 0:01:30.9]}
26... Rc7 {[%clk 0:01:28.5]} 27. Bb5 {[%clk 0:01:31.3]} 27... Ne7 {[%clk
0:01:26]} 28. Rcd1 {[%clk 0:01:27.6]} 28... g6 {[%clk 0:01:24.4]} 29. Ba4 {[%clk
0:01:26.5]} 29... Kg7 {[%clk 0:01:24.7]} 30. Bb3 {[%clk 0:01:26]} 30... Nc6
{[%clk 0:01:22]} 31. Re3 {[%clk 0:01:24.4]} 31... Re7 {[%clk 0:01:22]} 32. Rc3
{[%clk 0:01:22.5]} 32... Qd6 {[%clk 0:01:16.9]} 33. Rc5 {[%clk 0:01:20.9]} 33...
Rd7 {[%clk 0:00:45.3]} 34. Rxd5 {[%clk 0:01:11.8]} 34... Qe7 {[%clk 0:00:44.3]}
35. Rxd7 {[%clk 0:01:10.2]} 35... Qxd7 {[%clk 0:00:46.2]} 36. d5 {[%clk
0:01:11.1]} 36... Ne5 {[%clk 0:00:44.4]} 37. f4 {[%clk 0:01:11.2]} 37... Ng4
{[%clk 0:00:35.7]} 38. Rd2 {[%clk 0:01:10]} 38... Qd6 {[%clk 0:00:34.7]} 39. a3
{[%clk 0:01:05.4]} 39... Nf6 {[%clk 0:00:35.6]} 40. Ka2 {[%clk 0:01:06.2]} 40...
Ne4 {[%clk 0:00:35.1]} 41. Re2 {[%clk 0:01:05.7]} 41... Nc5 {[%clk 0:00:35]} 42.
Bc4 {[%clk 0:01:06.6]} 42... a5 {[%clk 0:00:33.7]} 43. b3 {[%clk 0:01:04.6]}
43... h5 {[%clk 0:00:28.4]} 44. a4 {[%clk 0:01:03.7]} 44... h4 {[%clk
0:00:28.8]} 45. gxh4 {[%clk 0:01:02.8]} 45... Qxf4 {[%clk 0:00:29.5]} 46. Kb2
{[%clk 0:00:51.8]} 46... Nb7 {[%clk 0:00:28]} 47. Kc3 {[%clk 0:00:43.5]} 47...
Qxh4 {[%clk 0:00:25.7]} 48. Bd3 {[%clk 0:00:39]} 48... Nd6 {[%clk 0:00:24]} 49.
Rd2 {[%clk 0:00:34]} 49... Qb4+ {[%clk 0:00:24.9]} 50. Kc2 {[%clk 0:00:34.3]}
50... Qc5+ {[%clk 0:00:25.3]} 51. Kb2 {[%clk 0:00:34.8]} 0-1

[Event "*** Titled Tuesday Blitz"]
[Site "Chess.com"]
[Date "2020.01.07"]
[Round "7"]
[White "manmanlai1"]
[Black "SirMittensofMittensville"]
[Result "0-1"]
[WhiteElo "2389"]
[BlackElo "2561"]
[TimeControl "180+2"]
[EndTime "14:36:48 PST"]
[Termination "SirMittensofMittensville won by resignation"]

1. d4 {[%clk 0:03:01.1]} 1... Nf6 {[%clk 0:03:00.2]} 2. Nf3 {[%clk 0:03:00.6]}
2... e6 {[%clk 0:03:01.7]} 3. c4 {[%clk 0:02:58.4]} 3... Bb4+ {[%clk 0:03:02.9]}
4. Nbd2 {[%clk 0:02:51.7]} 4... O-O {[%clk 0:03:03.5]} 5. g3 {[%clk 0:02:52.6]}
5... d5 {[%clk 0:03:03.7]} 6. a3 {[%clk 0:02:51.2]} 6... Be7 {[%clk 0:03:02.3]}
7. Bg2 {[%clk 0:02:49.8]} 7... b6 {[%clk 0:03:03.9]} 8. O-O {[%clk 0:02:47.2]}
8... Bb7 {[%clk 0:03:04.9]} 9. Qc2 {[%clk 0:02:47.7]} 9... c5 {[%clk 0:03:02.1]}
10. dxc5 {[%clk 0:02:37.7]} 10... bxc5 {[%clk 0:03:04]} 11. cxd5 {[%clk
0:02:35.1]} 11... exd5 {[%clk 0:03:05.9]} 12. Ne5 {[%clk 0:02:18.4]} 12... Nbd7
{[%clk 0:03:00.7]} 13. Nxd7 {[%clk 0:02:17.4]} 13... Qxd7 {[%clk 0:03:00.3]} 14.
Nf3 {[%clk 0:02:14.6]} 14... Bd6 {[%clk 0:02:57.7]} 15. Rd1 {[%clk 0:02:12.8]}
15... Rfe8 {[%clk 0:02:55.8]} 16. e3 {[%clk 0:02:06.5]} 16... Rac8 {[%clk
0:02:49.6]} 17. Bd2 {[%clk 0:02:05.3]} 17... Ne4 {[%clk 0:02:48.6]} 18. Be1
{[%clk 0:02:05.9]} 18... h6 {[%clk 0:02:35.9]} 19. Rac1 {[%clk 0:02:06.4]} 19...
Bf8 {[%clk 0:02:27.6]} 20. Nd2 {[%clk 0:02:02.7]} 20... Nf6 {[%clk 0:02:16.9]}
21. Nc4 {[%clk 0:02:00]} 21... Qe6 {[%clk 0:02:09.6]} 22. Na5 {[%clk 0:01:55.5]}
22... Ba8 {[%clk 0:02:10.9]} 23. Nb3 {[%clk 0:01:50.2]} 23... h5 {[%clk
0:02:04.7]} 24. h3 {[%clk 0:01:42.3]} 24... h4 {[%clk 0:01:59.4]} 25. g4 {[%clk
0:01:35.7]} 25... Bd6 {[%clk 0:01:37.4]} 26. Nd2 {[%clk 0:01:34.6]} 26... Be7
{[%clk 0:01:26.4]} 27. Qa4 {[%clk 0:01:23.4]} 27... Qb6 {[%clk 0:01:17.6]} 28.
Rc2 {[%clk 0:01:20.5]} 28... Bc6 {[%clk 0:01:05.4]} 29. Qb3 {[%clk 0:01:19.1]}
29... Qxb3 {[%clk 0:01:06.3]} 30. Nxb3 {[%clk 0:01:21]} 30... Ba4 {[%clk
0:01:08.2]} 31. Na1 {[%clk 0:00:54.9]} 31... Bxc2 {[%clk 0:01:04.9]} 32. Nxc2
{[%clk 0:00:56.8]} 32... Red8 {[%clk 0:01:02.7]} 33. Ba5 {[%clk 0:00:56.4]}
33... Rd6 {[%clk 0:00:59.4]} 34. Ne1 {[%clk 0:00:47.9]} 34... Ne4 {[%clk
0:00:56.5]} 35. f3 {[%clk 0:00:43.3]} 35... Nf6 {[%clk 0:00:50.8]} 36. Nd3
{[%clk 0:00:44]} 36... Re6 {[%clk 0:00:44.2]} 37. Kf2 {[%clk 0:00:42.2]} 37...
Rb8 {[%clk 0:00:45.2]} 38. Bc3 {[%clk 0:00:40.5]} 38... Bd6 {[%clk 0:00:41.7]}
39. g5 {[%clk 0:00:34.7]} 39... Bg3+ {[%clk 0:00:42.2]} 40. Kf1 {[%clk
0:00:33.5]} 40... Nd7 {[%clk 0:00:41.1]} 41. f4 {[%clk 0:00:25.4]} 41... Rxe3
{[%clk 0:00:36.5]} 42. Bxd5 {[%clk 0:00:25.9]} 42... Kf8 {[%clk 0:00:38.2]} 43.
Rd2 {[%clk 0:00:11.2]} 43... Nb6 {[%clk 0:00:36.7]} 44. Bc6 {[%clk 0:00:10.4]}
44... Nc4 {[%clk 0:00:35.1]} 45. Rd1 {[%clk 0:00:09.6]} 45... Re6 {[%clk
0:00:32.9]} 46. Bd5 {[%clk 0:00:10.2]} 46... Ne3+ {[%clk 0:00:34]} 47. Ke2
{[%clk 0:00:10]} 47... Nxd5+ {[%clk 0:00:35]} 0-1

[Event "*** Titled Tuesday Blitz"]
[Site "Chess.com"]
[Date "2020.01.07"]
[Round "7"]
[White "secretsuperstar7"]
[Black "Olga_Zhuravleva"]
[Result "1-0"]
[WhiteElo "2237"]
[BlackElo "2333"]
[TimeControl "180+2"]
[EndTime "14:36:53 PST"]
[Termination "secretsuperstar7 won by resignation"]

1. d4 {[%clk 0:02:34.8]} 1... Nf6 {[%clk 0:02:55]} 2. c4 {[%clk 0:02:34.1]} 2...
e6 {[%clk 0:02:55.6]} 3. Nc3 {[%clk 0:02:34]} 3... Bb4 {[%clk 0:02:54.5]} 4. g3
{[%clk 0:02:34.6]} 4... b6 {[%clk 0:02:54.9]} 5. Bg2 {[%clk 0:02:34.8]} 5...
Bxc3+ {[%clk 0:02:46.1]} 6. bxc3 {[%clk 0:02:34.1]} 6... d5 {[%clk 0:02:47.4]}
7. cxd5 {[%clk 0:02:34.2]} 7... exd5 {[%clk 0:02:46.5]} 8. Nf3 {[%clk
0:02:33.6]} 8... O-O {[%clk 0:02:45.7]} 9. O-O {[%clk 0:02:32.7]} 9... Re8
{[%clk 0:02:45]} 10. Ne5 {[%clk 0:02:21.8]} 10... Bb7 {[%clk 0:02:41.8]} 11. a4
{[%clk 0:02:13.8]} 11... c5 {[%clk 0:02:42.5]} 12. a5 {[%clk 0:02:10.2]} 12...
Nc6 {[%clk 0:02:33.8]} 13. Nxc6 {[%clk 0:02:04.6]} 13... Bxc6 {[%clk 0:02:31.9]}
14. c4 {[%clk 0:01:59.4]} 14... cxd4 {[%clk 0:02:22.1]} 15. Qxd4 {[%clk
0:01:59.2]} 15... Rxe2 {[%clk 0:02:21.3]} 16. Bg5 {[%clk 0:01:57.9]} 16... bxa5
{[%clk 0:01:54.5]} 17. cxd5 {[%clk 0:01:55]} 17... Bb7 {[%clk 0:01:54.1]} 18.
Rfe1 {[%clk 0:01:47.7]} 18... Rxe1+ {[%clk 0:01:49.9]} 19. Rxe1 {[%clk
0:01:47.2]} 19... Qb6 {[%clk 0:01:51.5]} 20. Qe5 {[%clk 0:01:39.6]} 20... h6
{[%clk 0:01:45.6]} 21. Bxf6 {[%clk 0:01:38.7]} 21... Qxf6 {[%clk 0:01:45.7]} 22.
Qc7 {[%clk 0:01:38.4]} 22... Qb6 {[%clk 0:01:38.7]} 23. Qd7 {[%clk 0:01:34.4]}
23... Rf8 {[%clk 0:01:26.9]} 24. h3 {[%clk 0:01:27.7]} 24... g6 {[%clk
0:01:16.8]} 25. Be4 {[%clk 0:01:20.2]} 25... Rd8 {[%clk 0:01:12.5]} 26. Qe7
{[%clk 0:01:17.4]} 26... Qd6 {[%clk 0:01:06.2]} 27. Qxb7 {[%clk 0:01:17.1]}
27... a4 {[%clk 0:00:56.7]} 28. Qxa7 {[%clk 0:01:11.7]} 28... a3 {[%clk
0:00:57.9]} 29. Re3 {[%clk 0:01:07.4]} 29... f5 {[%clk 0:00:30.6]} 30. Bc2
{[%clk 0:00:57.6]} 30... Rd7 {[%clk 0:00:21.1]} 31. Qxa3 {[%clk 0:00:54.5]}
31... Kg7 {[%clk 0:00:21.3]} 32. Qc3+ {[%clk 0:00:53.7]} 32... Kh7 {[%clk
0:00:20.5]} 33. Re8 {[%clk 0:00:53.5]} 33... Rg7 {[%clk 0:00:21.4]} 34. Bb3
{[%clk 0:00:46.6]} 34... f4 {[%clk 0:00:21.2]} 35. Re6 {[%clk 0:00:41.8]} 35...
Qb8 {[%clk 0:00:19.8]} 36. d6 {[%clk 0:00:39.9]} 36... fxg3 {[%clk 0:00:19.6]}
37. Qxg3 {[%clk 0:00:36.4]} 37... Qb6 {[%clk 0:00:14.1]} 38. Bc2 {[%clk
0:00:35.4]} 38... Qd4 {[%clk 0:00:11.3]} 39. Bxg6+ {[%clk 0:00:33]} 39... Kh8
{[%clk 0:00:12.6]} 40. Re8+ {[%clk 0:00:33]} 40... Rg8 {[%clk 0:00:13.1]} 41.
Rxg8+ {[%clk 0:00:33]} 41... Kxg8 {[%clk 0:00:15]} 42. Bf5+ {[%clk 0:00:30.9]}
42... Kf8 {[%clk 0:00:15.5]} 43. d7 {[%clk 0:00:30.7]} 43... Qd1+ {[%clk
0:00:10.8]} 44. Kh2 {[%clk 0:00:31]} 44... Qd2 {[%clk 0:00:10.4]} 45. Qb8+
{[%clk 0:00:29.5]} 45... Ke7 {[%clk 0:00:10.4]} 46. Qe8+ {[%clk 0:00:29.7]} 1-0

[Event "*** Titled Tuesday Blitz"]
[Site "Chess.com"]
[Date "2020.01.07"]
[Round "7"]
[White "Valk4"]
[Black "MikeSailer"]
[Result "1-0"]
[WhiteElo "2292"]
[BlackElo "2108"]
[TimeControl "180+2"]
[EndTime "14:37:03 PST"]
[Termination "Valk4 won by resignation"]

1. e4 {[%clk 0:03:01.9]} 1... d5 {[%clk 0:03:00.6]} 2. exd5 {[%clk 0:03:02.3]}
2... Qxd5 {[%clk 0:03:01.1]} 3. Nc3 {[%clk 0:03:03.1]} 3... Qd6 {[%clk
0:03:02.1]} 4. d4 {[%clk 0:03:01.9]} 4... Nf6 {[%clk 0:03:03.3]} 5. Nf3 {[%clk
0:02:59.6]} 5... c6 {[%clk 0:03:04.3]} 6. g3 {[%clk 0:02:56]} 6... Bf5 {[%clk
0:03:03.9]} 7. Bf4 {[%clk 0:02:55.1]} 7... Qe6+ {[%clk 0:03:02.8]} 8. Ne2 {[%clk
0:02:42.9]} 8... Nbd7 {[%clk 0:02:48.3]} 9. Bg2 {[%clk 0:02:43.7]} 9... Be4
{[%clk 0:02:40.7]} 10. O-O {[%clk 0:02:18.7]} 10... h6 {[%clk 0:02:35.1]} 11.
Nc3 {[%clk 0:02:11.4]} 11... Bh7 {[%clk 0:02:13.7]} 12. Re1 {[%clk 0:02:05.1]}
12... Qc4 {[%clk 0:02:14.4]} 13. Qd2 {[%clk 0:01:45.4]} 13... e6 {[%clk
0:02:05.4]} 14. a3 {[%clk 0:01:40.6]} 14... Be7 {[%clk 0:02:03.1]} 15. Bf1
{[%clk 0:01:39.2]} 15... Ne4 {[%clk 0:01:41.4]} 16. Rxe4 {[%clk 0:01:21.8]}
16... Bxe4 {[%clk 0:01:37.8]} 17. Bxc4 {[%clk 0:01:22.2]} 17... Bxf3 {[%clk
0:01:38.6]} 18. Be2 {[%clk 0:01:11.5]} 18... Bxe2 {[%clk 0:01:36.9]} 19. Qxe2
{[%clk 0:01:13.4]} 19... O-O-O {[%clk 0:01:36.7]} 20. Ne4 {[%clk 0:01:13.8]}
20... Nb6 {[%clk 0:01:33.3]} 21. c3 {[%clk 0:01:13.4]} 21... Nd5 {[%clk
0:01:34.2]} 22. Bd2 {[%clk 0:01:10.1]} 22... g5 {[%clk 0:01:26.4]} 23. b4 {[%clk
0:01:10.8]} 23... b6 {[%clk 0:01:10.3]} 24. b5 {[%clk 0:01:07.8]} 24... f5
{[%clk 0:00:51.5]} 25. Nc5 {[%clk 0:00:40.8]} 25... bxc5 {[%clk 0:00:46.8]} 26.
Qxe6+ {[%clk 0:00:35.6]} 26... Kb8 {[%clk 0:00:38]} 27. bxc6 {[%clk 0:00:36.8]}
27... Rhe8 {[%clk 0:00:23.9]} 28. Rb1+ {[%clk 0:00:35.8]} 28... Nb6 {[%clk
0:00:19.1]} 29. Qxf5 {[%clk 0:00:35]} 29... c4 {[%clk 0:00:16]} 30. a4 {[%clk
0:00:32.9]} 30... Kc7 {[%clk 0:00:09]} 31. a5 {[%clk 0:00:33.4]} 31... Nc8
{[%clk 0:00:04.2]} 32. Qb5 {[%clk 0:00:25.9]} 32... Nd6 {[%clk 0:00:03.4]} 33.
Qd5 {[%clk 0:00:25.8]} 33... Rb8 {[%clk 0:00:03.2]} 34. Rxb8 {[%clk 0:00:25.9]}
34... Rxb8 {[%clk 0:00:03.3]} 35. h4 {[%clk 0:00:26.9]} 35... Rb1+ {[%clk
0:00:04.1]} 36. Kg2 {[%clk 0:00:27.1]} 36... Rb2 {[%clk 0:00:05.4]} 37. Be3
{[%clk 0:00:28]} 37... Rc2 {[%clk 0:00:05.5]} 38. hxg5 {[%clk 0:00:28]} 38...
hxg5 {[%clk 0:00:06]} 39. Bxg5 {[%clk 0:00:29.2]} 39... Bxg5 {[%clk 0:00:07.1]}
40. Qxg5 {[%clk 0:00:31.1]} 40... Rxc3 {[%clk 0:00:08.6]} 41. Qe7+ {[%clk
0:00:30.2]} 41... Kxc6 {[%clk 0:00:09.8]} 42. Qxa7 {[%clk 0:00:30.8]} 42... Rd3
{[%clk 0:00:09.9]} 43. Qc5+ {[%clk 0:00:30.9]} 43... Kd7 {[%clk 0:00:10.8]} 44.
a6 {[%clk 0:00:31]} 44... Rd2 {[%clk 0:00:11.3]} 45. a7 {[%clk 0:00:30.7]} 45...
Ra2 {[%clk 0:00:11.8]} 46. g4 {[%clk 0:00:30.4]} 46... Ne4 {[%clk 0:00:12.4]}
47. Qd5+ {[%clk 0:00:30.2]} 47... Nd6 {[%clk 0:00:12.2]} 48. a8=Q {[%clk
0:00:30.9]} 1-0

[Event "*** Titled Tuesday Blitz"]
[Site "Chess.com"]
[Date "2020.01.07"]
[Round "7"]
[White "iLuusions"]
[Black "FredyMatsuura"]
[Result "1-0"]
[WhiteElo "2477"]
[BlackElo "2250"]
[TimeControl "180+2"]
[EndTime "14:37:04 PST"]
[Termination "iLuusions won by resignation"]

1. d4 {[%clk 0:03:00.5]} 1... d5 {[%clk 0:02:59.6]} 2. c4 {[%clk 0:03:02.4]}
2... e6 {[%clk 0:03:01]} 3. Nf3 {[%clk 0:03:02.4]} 3... Nf6 {[%clk 0:03:01.5]}
4. g3 {[%clk 0:03:03.7]} 4... Be7 {[%clk 0:03:02.8]} 5. Bg2 {[%clk 0:03:01.5]}
5... O-O {[%clk 0:03:04.2]} 6. O-O {[%clk 0:02:58.1]} 6... b6 {[%clk 0:03:05.5]}
7. Qc2 {[%clk 0:02:58.2]} 7... Bb7 {[%clk 0:03:06.2]} 8. a3 {[%clk 0:02:58.3]}
8... dxc4 {[%clk 0:02:56.9]} 9. Qxc4 {[%clk 0:02:53.4]} 9... c5 {[%clk
0:02:57.7]} 10. Nc3 {[%clk 0:02:47.1]} 10... cxd4 {[%clk 0:02:57]} 11. Nxd4
{[%clk 0:02:45.5]} 11... Bxg2 {[%clk 0:02:57.1]} 12. Kxg2 {[%clk 0:02:47.4]}
12... Qc8 {[%clk 0:02:42.2]} 13. Qxc8 {[%clk 0:02:41.7]} 13... Rxc8 {[%clk
0:02:42.2]} 14. Rd1 {[%clk 0:02:41.8]} 14... Nbd7 {[%clk 0:02:33.3]} 15. h3
{[%clk 0:01:56.8]} 15... a6 {[%clk 0:02:30.2]} 16. f4 {[%clk 0:01:55.4]} 16...
b5 {[%clk 0:02:28.7]} 17. Be3 {[%clk 0:01:28.2]} 17... Bc5 {[%clk 0:02:13.8]}
18. Nc2 {[%clk 0:01:26.1]} 18... Nb6 {[%clk 0:02:02]} 19. Bxc5 {[%clk
0:01:16.6]} 19... Rxc5 {[%clk 0:02:01.9]} 20. Ne3 {[%clk 0:01:18.1]} 20... h5
{[%clk 0:01:49.1]} 21. Kf3 {[%clk 0:01:14.6]} 21... Rac8 {[%clk 0:01:45]} 22.
Rd6 {[%clk 0:01:09.6]} 22... R5c6 {[%clk 0:01:37.2]} 23. Rad1 {[%clk 0:01:05.8]}
23... g6 {[%clk 0:01:24.2]} 24. g4 {[%clk 0:00:59.7]} 24... hxg4+ {[%clk
0:01:24.3]} 25. hxg4 {[%clk 0:01:01.6]} 25... Kf8 {[%clk 0:01:25]} 26. f5 {[%clk
0:00:33.1]} 26... gxf5 {[%clk 0:01:21.9]} 27. gxf5 {[%clk 0:00:35]} 27... Ke7
{[%clk 0:01:21]} 28. Rxc6 {[%clk 0:00:33.7]} 28... Rxc6 {[%clk 0:01:21.7]} 29.
fxe6 {[%clk 0:00:35.1]} 29... fxe6 {[%clk 0:01:21.2]} 30. Rd4 {[%clk 0:00:33]}
30... Nfd7 {[%clk 0:01:17.4]} 31. Na2 {[%clk 0:00:25.1]} 31... Ne5+ {[%clk
0:01:16.3]} 32. Ke4 {[%clk 0:00:22.6]} 32... Nec4 {[%clk 0:01:16.8]} 33. Nb4
{[%clk 0:00:21.6]} 33... Rc5 {[%clk 0:01:10.4]} 34. Nxc4 {[%clk 0:00:21.1]}
34... Nxc4 {[%clk 0:01:10.8]} 35. Nxa6 {[%clk 0:00:22.6]} 35... Re5+ {[%clk
0:01:11.1]} 36. Kf3 {[%clk 0:00:24.1]} 36... Nxb2 {[%clk 0:01:10.2]} 37. e4
{[%clk 0:00:19]} 37... Rh5 {[%clk 0:01:05.6]} 38. Kg4 {[%clk 0:00:16.9]} 38...
Rh2 {[%clk 0:00:59.6]} 39. Rb4 {[%clk 0:00:18]} 39... Nc4 {[%clk 0:00:53.9]} 40.
a4 {[%clk 0:00:19]} 40... Ne5+ {[%clk 0:00:52.4]} 41. Kg3 {[%clk 0:00:18.4]}
41... Rh5 {[%clk 0:00:45.6]} 42. Rxb5 {[%clk 0:00:13.6]} 42... Kd6 {[%clk
0:00:39.7]} 43. Nb4 {[%clk 0:00:13.2]} 43... Rg5+ {[%clk 0:00:37.2]} 44. Kh3
{[%clk 0:00:08.6]} 44... Rg1 {[%clk 0:00:36]} 45. Nc2 {[%clk 0:00:05]} 45... Re1
{[%clk 0:00:35]} 46. Rb4 {[%clk 0:00:04.5]} 46... Kc5 {[%clk 0:00:34.2]} 47.
Rb5+ {[%clk 0:00:05.8]} 47... Kd6 {[%clk 0:00:35.1]} 48. Rb6+ {[%clk 0:00:07.1]}
48... Ke7 {[%clk 0:00:35.1]} 49. Nxe1 {[%clk 0:00:07.9]} 1-0